[Event "*** Titled Tuesday Blitz"]
[Site "Chess.com"]
[Date "2020.04.14"]
[Round "2"]
[White "Kingsman132"]
[Black "Klavdia_Nik"]
[Result "1-0"]
[WhiteElo "2413"]
[BlackElo "2134"]
[TimeControl "180+1"]
[EndTime "10:16:51 PDT"]
[Termination "Kingsman132 won on time"]

1. g3 {[%clk 0:02:54.8]} 1... Nf6 {[%clk 0:02:54]} 2. Bg2 {[%clk 0:02:51.3]}
2... g6 {[%clk 0:02:47.9]} 3. e4 {[%clk 0:02:46]} 3... d6 {[%clk 0:02:46.2]} 4.
d4 {[%clk 0:02:40.4]} 4... Bg7 {[%clk 0:02:46]} 5. Nc3 {[%clk 0:02:28.2]} 5...
O-O {[%clk 0:02:45.2]} 6. Nge2 {[%clk 0:02:03.9]} 6... c6 {[%clk 0:02:35.7]} 7.
O-O {[%clk 0:01:51.9]} 7... Nbd7 {[%clk 0:02:27.9]} 8. b3 {[%clk 0:01:47.1]}
8... c5 {[%clk 0:02:24]} 9. Bb2 {[%clk 0:01:46.9]} 9... cxd4 {[%clk 0:02:23.5]}
10. Nxd4 {[%clk 0:01:46.3]} 10... a6 {[%clk 0:02:20.5]} 11. Nd5 {[%clk
0:01:45.3]} 11... Nc5 {[%clk 0:02:04]} 12. Re1 {[%clk 0:01:35.1]} 12... e6
{[%clk 0:01:52.3]} 13. Nxf6+ {[%clk 0:01:32.8]} 13... Bxf6 {[%clk 0:01:52.7]}
14. Qd2 {[%clk 0:01:29]} 14... Qc7 {[%clk 0:01:47]} 15. Nb5 {[%clk 0:01:24.6]}
15... Qe7 {[%clk 0:01:43.5]} 16. Bxf6 {[%clk 0:01:23.6]} 16... Qxf6 {[%clk
0:01:42.6]} 17. Nxd6 {[%clk 0:01:24.2]} 17... e5 {[%clk 0:01:38.2]} 18. Qd5
{[%clk 0:01:23.4]} 18... Ne6 {[%clk 0:01:28.6]} 19. Nxc8 {[%clk 0:01:23.3]}
19... Raxc8 {[%clk 0:01:22.9]} 20. c4 {[%clk 0:01:23.6]} 20... Nd4 {[%clk
0:01:20.8]} 21. Rad1 {[%clk 0:01:20.1]} 21... b5 {[%clk 0:01:20.4]} 22. Rc1
{[%clk 0:01:15.9]} 22... Rfd8 {[%clk 0:01:09.1]} 23. Qb7 {[%clk 0:01:15.5]}
23... bxc4 {[%clk 0:00:57.9]} 24. Rxc4 {[%clk 0:01:13.9]} 24... Rb8 {[%clk
0:00:33.1]} 25. Qc7 {[%clk 0:01:10]} 25... h5 {[%clk 0:00:26.6]} 26. h4 {[%clk
0:01:04.9]} 26... Kg7 {[%clk 0:00:18]} 27. Rc5 {[%clk 0:01:04.5]} 27... Rbc8
{[%clk 0:00:14.4]} 28. Qxe5 {[%clk 0:01:03.6]} 28... Qxe5 {[%clk 0:00:05.6]} 29.
Rxe5 {[%clk 0:01:02.1]} 29... Rc2 {[%clk 0:00:04.8]} 30. a4 {[%clk 0:00:59.4]}
30... Nxb3 {[%clk 0:00:03.6]} 31. Re7 {[%clk 0:00:56.4]} 31... Rdd2 {[%clk
0:00:02.6]} 32. Rf1 {[%clk 0:00:56.1]} 32... Nd4 {[%clk 0:00:01.4]} 33. e5
{[%clk 0:00:55.8]} 1-0

[Event "*** Titled Tuesday Blitz"]
[Site "Chess.com"]
[Date "2020.04.14"]
[Round "2"]
[White "Kobalia"]
[Black "silverback96"]
[Result "1-0"]
[WhiteElo "2644"]
[BlackElo "2177"]
[TimeControl "180+1"]
[EndTime "10:16:52 PDT"]
[Termination "Kobalia won by resignation"]

1. e4 {[%clk 0:03:00.9]} 1... e5 {[%clk 0:02:57.6]} 2. Nf3 {[%clk 0:03:00.4]}
2... Nc6 {[%clk 0:02:58.2]} 3. Bb5 {[%clk 0:03:00.1]} 3... a6 {[%clk 0:02:56.5]}
4. Ba4 {[%clk 0:03:00.1]} 4... Nf6 {[%clk 0:02:56.6]} 5. O-O {[%clk 0:02:59.3]}
5... Be7 {[%clk 0:02:57.2]} 6. d3 {[%clk 0:02:58.9]} 6... b5 {[%clk 0:02:56.8]}
7. Bb3 {[%clk 0:02:58.9]} 7... O-O {[%clk 0:02:57.4]} 8. a4 {[%clk 0:02:57.8]}
8... b4 {[%clk 0:02:55.6]} 9. Nbd2 {[%clk 0:02:56.7]} 9... d6 {[%clk 0:02:53.4]}
10. a5 {[%clk 0:02:56.2]} 10... Bg4 {[%clk 0:02:29.6]} 11. c3 {[%clk 0:02:54.5]}
11... bxc3 {[%clk 0:02:27.6]} 12. bxc3 {[%clk 0:02:53.9]} 12... Rb8 {[%clk
0:02:22.6]} 13. h3 {[%clk 0:02:51.5]} 13... Bh5 {[%clk 0:02:21.5]} 14. Bc4
{[%clk 0:02:49.8]} 14... Qc8 {[%clk 0:02:20.5]} 15. Re1 {[%clk 0:02:49.5]} 15...
Re8 {[%clk 0:02:12.2]} 16. Nf1 {[%clk 0:02:45.9]} 16... Bf8 {[%clk 0:02:10.1]}
17. Ng3 {[%clk 0:02:45.3]} 17... Bg6 {[%clk 0:02:10.6]} 18. Nh4 {[%clk
0:02:44.9]} 18... Nd8 {[%clk 0:01:52.7]} 19. Nhf5 {[%clk 0:02:22.6]} 19... Ne6
{[%clk 0:01:51.5]} 20. h4 {[%clk 0:02:21.7]} 20... Nf4 {[%clk 0:01:48.3]} 21.
Qf3 {[%clk 0:02:14.1]} 21... N6h5 {[%clk 0:01:38]} 22. Nxh5 {[%clk 0:01:55.2]}
22... Bxh5 {[%clk 0:01:21.1]} 23. g4 {[%clk 0:01:54]} 23... Bg6 {[%clk
0:00:42.9]} 24. Bxf4 {[%clk 0:01:53]} 24... exf4 {[%clk 0:00:43.8]} 25. Qxf4
{[%clk 0:01:53.4]} 25... Bxf5 {[%clk 0:00:43.6]} 26. Qxf5 {[%clk 0:01:52]} 26...
Qxf5 {[%clk 0:00:41.8]} 27. exf5 {[%clk 0:01:52]} 27... c6 {[%clk 0:00:36.3]}
28. Rxe8 {[%clk 0:01:49.1]} 28... Rxe8 {[%clk 0:00:37.2]} 29. Bxa6 {[%clk
0:01:49.1]} 29... Rb8 {[%clk 0:00:34.1]} 30. d4 {[%clk 0:01:33.9]} 30... d5
{[%clk 0:00:31.5]} 31. Bd3 {[%clk 0:01:33.8]} 31... c5 {[%clk 0:00:20.6]} 32. a6
{[%clk 0:01:34.1]} 32... cxd4 {[%clk 0:00:19]} 33. cxd4 {[%clk 0:01:30.6]} 33...
Bb4 {[%clk 0:00:17.3]} 34. a7 {[%clk 0:01:28.5]} 34... Ra8 {[%clk 0:00:17.6]}
35. Bb5 {[%clk 0:01:26.6]} 35... Bc3 {[%clk 0:00:17.6]} 36. Ra4 {[%clk
0:01:26.5]} 36... Bxd4 {[%clk 0:00:16.2]} 37. Rxd4 {[%clk 0:01:24.2]} 37... Rxa7
{[%clk 0:00:17.1]} 38. Rxd5 {[%clk 0:01:24.4]} 38... h6 {[%clk 0:00:17.5]} 39.
Kg2 {[%clk 0:01:21.2]} 39... Kh7 {[%clk 0:00:17.7]} 40. Bc4 {[%clk 0:01:20.3]}
40... h5 {[%clk 0:00:17.4]} 41. g5 {[%clk 0:01:19.6]} 41... Ra4 {[%clk
0:00:15.9]} 42. Rc5 {[%clk 0:01:19.4]} 42... Kg8 {[%clk 0:00:14]} 43. g6 {[%clk
0:01:18.6]} 43... Kf8 {[%clk 0:00:11.7]} 44. Rc8+ {[%clk 0:01:16]} 44... Ke7
{[%clk 0:00:11.1]} 45. Rc7+ {[%clk 0:01:16.9]} 1-0

[Event "*** Titled Tuesday Blitz"]
[Site "Chess.com"]
[Date "2020.04.14"]
[Round "2"]
[White "steepedgames"]
[Black "SergeiAza"]
[Result "1-0"]
[WhiteElo "2440"]
[BlackElo "2776"]
[TimeControl "180+1"]
[EndTime "10:16:52 PDT"]
[Termination "steepedgames won by resignation"]

1. d4 {[%clk 0:03:00.9]} 1... Nf6 {[%clk 0:02:59.4]} 2. Nf3 {[%clk 0:03:00.1]}
2... b6 {[%clk 0:02:57.4]} 3. g3 {[%clk 0:02:57.4]} 3... Bb7 {[%clk 0:02:55.9]}
4. Bg2 {[%clk 0:02:57.9]} 4... e6 {[%clk 0:02:56.4]} 5. O-O {[%clk 0:02:58]}
5... Be7 {[%clk 0:02:55.4]} 6. c4 {[%clk 0:02:56.8]} 6... O-O {[%clk 0:02:54.9]}
7. Nc3 {[%clk 0:02:56.6]} 7... Ne4 {[%clk 0:02:54.9]} 8. Qc2 {[%clk 0:02:55]}
8... Nxc3 {[%clk 0:02:52.4]} 9. Qxc3 {[%clk 0:02:55.9]} 9... f5 {[%clk
0:02:47.1]} 10. h4 {[%clk 0:02:53.3]} 10... Bf6 {[%clk 0:02:31.2]} 11. Bf4
{[%clk 0:02:49.3]} 11... Nc6 {[%clk 0:02:29.4]} 12. Qd2 {[%clk 0:02:30.6]} 12...
Ne7 {[%clk 0:02:10]} 13. Rfd1 {[%clk 0:02:17.4]} 13... Be4 {[%clk 0:02:02.9]}
14. Ne5 {[%clk 0:01:58.9]} 14... Bxg2 {[%clk 0:01:59.5]} 15. Kxg2 {[%clk
0:01:59.8]} 15... d6 {[%clk 0:01:57]} 16. Nf3 {[%clk 0:01:54.9]} 16... Ng6
{[%clk 0:01:56.3]} 17. Bg5 {[%clk 0:01:47.7]} 17... f4 {[%clk 0:01:49.3]} 18.
Bxf4 {[%clk 0:01:35.4]} 18... Bxh4 {[%clk 0:01:40.7]} 19. Bg5 {[%clk 0:01:05.3]}
19... Bxg5 {[%clk 0:01:36.6]} 20. Qxg5 {[%clk 0:01:04.2]} 20... Qe8 {[%clk
0:01:34.7]} 21. Rh1 {[%clk 0:01:02.1]} 21... Rf5 {[%clk 0:01:31.7]} 22. Qg4
{[%clk 0:01:00.9]} 22... h6 {[%clk 0:01:22.3]} 23. d5 {[%clk 0:00:29.8]} 23...
Rf6 {[%clk 0:01:03.4]} 24. dxe6 {[%clk 0:00:24]} 24... Qxe6 {[%clk 0:01:02.1]}
25. Qxe6+ {[%clk 0:00:23.9]} 25... Rxe6 {[%clk 0:01:03]} 26. Nd4 {[%clk
0:00:22.4]} 26... Re4 {[%clk 0:01:01.4]} 27. e3 {[%clk 0:00:17]} 27... c5 {[%clk
0:00:58.7]} 28. Nb5 {[%clk 0:00:16.3]} 28... Rxc4 {[%clk 0:00:58]} 29. Nxd6
{[%clk 0:00:14.4]} 29... Rc2 {[%clk 0:00:58.1]} 30. b3 {[%clk 0:00:14.3]} 30...
Rf8 {[%clk 0:00:57.6]} 31. Ne4 {[%clk 0:00:14.3]} 31... Ne5 {[%clk 0:00:54.1]}
32. Rhc1 {[%clk 0:00:12.8]} 32... Ng4 {[%clk 0:00:51.1]} 33. Rxc2 {[%clk
0:00:12]} 1-0

[Event "*** Titled Tuesday Blitz"]
[Site "Chess.com"]
[Date "2020.04.14"]
[Round "2"]
[White "lucasran"]
[Black "Barbus89"]
[Result "1-0"]
[WhiteElo "2651"]
[BlackElo "2321"]
[TimeControl "180+1"]
[EndTime "10:16:52 PDT"]
[Termination "lucasran won on time"]

1. Nf3 {[%clk 0:03:00.9]} 1... Nf6 {[%clk 0:02:59.2]} 2. c4 {[%clk 0:03:00.8]}
2... g6 {[%clk 0:02:58.9]} 3. Nc3 {[%clk 0:03:00.5]} 3... d5 {[%clk 0:02:57.7]}
4. d4 {[%clk 0:02:59.6]} 4... Bg7 {[%clk 0:02:56.7]} 5. Bg5 {[%clk 0:02:59.3]}
5... O-O {[%clk 0:02:56.4]} 6. Bxf6 {[%clk 0:02:57.9]} 6... Bxf6 {[%clk
0:02:56.5]} 7. cxd5 {[%clk 0:02:58.1]} 7... c6 {[%clk 0:02:48]} 8. e3 {[%clk
0:02:56.5]} 8... cxd5 {[%clk 0:02:42.5]} 9. Rc1 {[%clk 0:02:53.7]} 9... Nc6
{[%clk 0:02:26.6]} 10. Bd3 {[%clk 0:02:38.3]} 10... Bg4 {[%clk 0:02:19.9]} 11.
h3 {[%clk 0:02:37.2]} 11... Bxf3 {[%clk 0:02:17.8]} 12. Qxf3 {[%clk 0:02:38.1]}
12... e5 {[%clk 0:01:53.7]} 13. Nxd5 {[%clk 0:02:27.8]} 13... Bg7 {[%clk
0:01:52.9]} 14. O-O {[%clk 0:02:03.4]} 14... exd4 {[%clk 0:01:50.9]} 15. e4
{[%clk 0:02:03.6]} 15... Ne7 {[%clk 0:01:31]} 16. Bc4 {[%clk 0:01:50.2]} 16...
Nxd5 {[%clk 0:01:29.2]} 17. Bxd5 {[%clk 0:01:51.1]} 17... Qb6 {[%clk 0:01:29.4]}
18. b3 {[%clk 0:01:49.4]} 18... a5 {[%clk 0:01:16.1]} 19. Rc4 {[%clk 0:01:44.5]}
19... Be5 {[%clk 0:00:42.2]} 20. Rfc1 {[%clk 0:01:34.5]} 20... Kg7 {[%clk
0:00:41.2]} 21. Qg4 {[%clk 0:01:13.6]} 21... h5 {[%clk 0:00:25.9]} 22. Qd7
{[%clk 0:01:11.7]} 22... Rad8 {[%clk 0:00:25]} 23. Qxb7 {[%clk 0:01:06.2]} 23...
Qxb7 {[%clk 0:00:24.8]} 24. Bxb7 {[%clk 0:01:07.1]} 24... Bd6 {[%clk 0:00:15.8]}
25. Kf1 {[%clk 0:00:55.8]} 25... d3 {[%clk 0:00:09.3]} 26. Rd1 {[%clk
0:00:54.9]} 26... Bb4 {[%clk 0:00:08.3]} 27. Bd5 {[%clk 0:00:50.1]} 27... Rc8
{[%clk 0:00:07]} 28. Rxd3 {[%clk 0:00:48.8]} 28... Rxc4 {[%clk 0:00:06.2]} 29.
Bxc4 {[%clk 0:00:49.7]} 29... Re8 {[%clk 0:00:05]} 30. f3 {[%clk 0:00:44.6]}
30... Re7 {[%clk 0:00:04.5]} 31. Rd5 {[%clk 0:00:42.6]} 31... Ra7 {[%clk
0:00:01.4]} 32. Rb5 {[%clk 0:00:41.6]} 1-0

[Event "*** Titled Tuesday Blitz"]
[Site "Chess.com"]
[Date "2020.04.14"]
[Round "2"]
[White "Guachiney"]
[Black "MishkaFighter"]
[Result "1-0"]
[WhiteElo "2833"]
[BlackElo "2568"]
[TimeControl "180+1"]
[EndTime "10:16:53 PDT"]
[Termination "Guachiney won by checkmate"]

1. e4 {[%clk 0:03:00.9]} 1... c5 {[%clk 0:02:58.9]} 2. Nf3 {[%clk 0:03:00.8]}
2... e6 {[%clk 0:02:59.1]} 3. d4 {[%clk 0:03:00.9]} 3... cxd4 {[%clk 0:03:00]}
4. Nxd4 {[%clk 0:03:01.8]} 4... Nc6 {[%clk 0:03:00.4]} 5. Nc3 {[%clk 0:03:01.7]}
5... Qc7 {[%clk 0:03:00.6]} 6. Be3 {[%clk 0:03:01.1]} 6... a6 {[%clk 0:02:59.5]}
7. Qf3 {[%clk 0:03:00.8]} 7... Nf6 {[%clk 0:02:56.2]} 8. O-O-O {[%clk
0:03:00.1]} 8... Ne5 {[%clk 0:02:54.8]} 9. Qg3 {[%clk 0:02:59.1]} 9... b5 {[%clk
0:02:54.5]} 10. a3 {[%clk 0:02:58.9]} 10... Bb7 {[%clk 0:02:46.7]} 11. Bxb5
{[%clk 0:02:58.2]} 11... Rc8 {[%clk 0:02:41]} 12. Ba4 {[%clk 0:02:44.4]} 12...
Bxa3 {[%clk 0:02:19.3]} 13. Bf4 {[%clk 0:02:27.8]} 13... Bd6 {[%clk 0:01:08]}
14. Qxg7 {[%clk 0:02:06.2]} 14... Ke7 {[%clk 0:00:59]} 15. Bg5 {[%clk
0:02:02.8]} 15... Ng4 {[%clk 0:00:56.1]} 16. Bb3 {[%clk 0:01:29.8]} 16... Bf4+
{[%clk 0:00:21]} 17. Kb1 {[%clk 0:01:26.2]} 17... Bxg5 {[%clk 0:00:17.7]} 18.
Qxg5 {[%clk 0:01:27.1]} 18... Rhg8 {[%clk 0:00:14.6]} 19. Qh4 {[%clk 0:01:26.4]}
19... Ne5 {[%clk 0:00:07.9]} 20. f4 {[%clk 0:01:17.2]} 20... Ng6 {[%clk
0:00:07.7]} 21. Qe1 {[%clk 0:01:13.2]} 21... Qxf4 {[%clk 0:00:07.4]} 22. Rf1
{[%clk 0:01:12.1]} 22... Qxh2 {[%clk 0:00:06]} 23. Nf5+ {[%clk 0:01:11.2]} 23...
exf5 {[%clk 0:00:06.9]} 24. exf5+ {[%clk 0:01:11.9]} 24... Ne5 {[%clk
0:00:07.4]} 25. Na4 {[%clk 0:01:03.2]} 25... d6 {[%clk 0:00:07.1]} 26. Qb4
{[%clk 0:01:02.3]} 26... Rcd8 {[%clk 0:00:02.7]} 27. Qxb7+ {[%clk 0:01:01.4]}
27... Rd7 {[%clk 0:00:03.6]} 28. Qxa6 {[%clk 0:01:01.5]} 28... Rxg2 {[%clk
0:00:03.8]} 29. Nb6 {[%clk 0:00:57.7]} 29... Rc7 {[%clk 0:00:03.2]} 30. Qa4
{[%clk 0:00:49.7]} 30... Ne4 {[%clk 0:00:02]} 31. Nd5+ {[%clk 0:00:48.9]} 31...
Kf8 {[%clk 0:00:01.7]} 32. Nxc7 {[%clk 0:00:48.1]} 32... Nd2+ {[%clk 0:00:02.4]}
33. Rxd2 {[%clk 0:00:47.9]} 33... Rxd2 {[%clk 0:00:03.3]} 34. f6 {[%clk
0:00:47]} 34... Rxc2 {[%clk 0:00:01.3]} 35. Qe8# {[%clk 0:00:46.2]} 1-0

[Event "*** Titled Tuesday Blitz"]
[Site "Chess.com"]
[Date "2020.04.14"]
[Round "2"]
[White "RojonR"]
[Black "VishnuPrasanna"]
[Result "0-1"]
[WhiteElo "2403"]
[BlackElo "2684"]
[TimeControl "180+1"]
[EndTime "10:16:53 PDT"]
[Termination "VishnuPrasanna won by resignation"]

1. e4 {[%clk 0:03:00.9]} 1... c5 {[%clk 0:02:59.9]} 2. Nf3 {[%clk 0:02:54]} 2...
d6 {[%clk 0:03:00.2]} 3. d4 {[%clk 0:02:53.2]} 3... cxd4 {[%clk 0:02:59.7]} 4.
Qxd4 {[%clk 0:02:53.8]} 4... Nf6 {[%clk 0:03:00.5]} 5. Nc3 {[%clk 0:02:52.4]}
5... Nc6 {[%clk 0:02:59.4]} 6. Bb5 {[%clk 0:02:51.8]} 6... Bd7 {[%clk
0:02:59.4]} 7. Bxc6 {[%clk 0:02:51.7]} 7... Bxc6 {[%clk 0:02:58.8]} 8. Bg5
{[%clk 0:02:50.9]} 8... e6 {[%clk 0:02:56.9]} 9. O-O-O {[%clk 0:02:50]} 9... Be7
{[%clk 0:02:57]} 10. Qd3 {[%clk 0:02:49.1]} 10... Qa5 {[%clk 0:02:57.1]} 11. h4
{[%clk 0:02:44.4]} 11... h6 {[%clk 0:02:56.2]} 12. Bd2 {[%clk 0:02:44.1]} 12...
Qa6 {[%clk 0:02:56.2]} 13. Qxa6 {[%clk 0:02:44.1]} 13... bxa6 {[%clk 0:02:57.1]}
14. Rhe1 {[%clk 0:02:40.4]} 14... O-O {[%clk 0:02:49.7]} 15. Nd4 {[%clk
0:02:34.7]} 15... Bb7 {[%clk 0:02:45.8]} 16. Re2 {[%clk 0:02:34.2]} 16... Rfc8
{[%clk 0:02:44.7]} 17. f3 {[%clk 0:02:32.3]} 17... Rab8 {[%clk 0:02:41.2]} 18.
g4 {[%clk 0:02:26.8]} 18... Nd7 {[%clk 0:02:39.6]} 19. g5 {[%clk 0:02:21.1]}
19... h5 {[%clk 0:02:38.9]} 20. g6 {[%clk 0:02:13.9]} 20... Ne5 {[%clk
0:02:37.1]} 21. gxf7+ {[%clk 0:02:11.4]} 21... Kxf7 {[%clk 0:02:38]} 22. Bg5
{[%clk 0:01:57.9]} 22... Bf6 {[%clk 0:02:37.8]} 23. f4 {[%clk 0:01:43.4]} 23...
Ng4 {[%clk 0:02:36.1]} 24. Bxf6 {[%clk 0:01:21.8]} 24... gxf6 {[%clk 0:02:34]}
25. f5 {[%clk 0:01:18.6]} 25... e5 {[%clk 0:02:33.5]} 26. Ne6 {[%clk 0:01:16.6]}
26... Rc6 {[%clk 0:02:32.4]} 27. Red2 {[%clk 0:01:10.9]} 27... Ne3 {[%clk
0:02:20.4]} 28. Rg1 {[%clk 0:01:04.7]} 28... Ng4 {[%clk 0:02:20]} 29. Rgd1
{[%clk 0:01:03.9]} 29... Ne3 {[%clk 0:02:15.3]} 30. Rg1 {[%clk 0:01:02.2]} 30...
Ng4 {[%clk 0:02:04.7]} 31. Rg3 {[%clk 0:00:41.8]} 31... Rb6 {[%clk 0:01:55.6]}
32. Rgd3 {[%clk 0:00:39.7]} 32... Ke7 {[%clk 0:01:55.6]} 33. b3 {[%clk 0:00:34]}
33... Rc8 {[%clk 0:01:53.8]} 34. Kb2 {[%clk 0:00:30]} 34... a5 {[%clk
0:01:52.1]} 35. a4 {[%clk 0:00:25.1]} 35... Rg8 {[%clk 0:01:31.1]} 36. Nb5
{[%clk 0:00:17.2]} 36... Bxe4 {[%clk 0:01:28.8]} 37. Rxd6 {[%clk 0:00:16.6]}
37... Rxd6 {[%clk 0:01:28.7]} 38. Nxd6 {[%clk 0:00:15.9]} 38... Bxf5 {[%clk
0:01:26.3]} 39. Nc5 {[%clk 0:00:11]} 39... Bc8 {[%clk 0:01:24.9]} 40. Nxc8+
{[%clk 0:00:09.7]} 40... Rxc8 {[%clk 0:01:23.9]} 41. Nb7 {[%clk 0:00:08.5]}
41... f5 {[%clk 0:01:19.2]} 42. Nxa5 {[%clk 0:00:08.7]} 42... f4 {[%clk
0:01:18.1]} 43. Nc4 {[%clk 0:00:08.3]} 43... Ke6 {[%clk 0:01:16.2]} 44. Rd6+
{[%clk 0:00:07.8]} 44... Kf5 {[%clk 0:01:16.2]} 0-1

[Event "*** Titled Tuesday Blitz"]
[Site "Chess.com"]
[Date "2020.04.14"]
[Round "2"]
[White "Bykov_Egor"]
[Black "bancsoo"]
[Result "1-0"]
[WhiteElo "2555"]
[BlackElo "2753"]
[TimeControl "180+1"]
[EndTime "10:16:54 PDT"]
[Termination "Bykov_Egor won by resignation"]

1. d4 {[%clk 0:03:00.9]} 1... d5 {[%clk 0:02:59.6]} 2. c4 {[%clk 0:03:01.2]}
2... c6 {[%clk 0:02:59.8]} 3. Nf3 {[%clk 0:03:01.4]} 3... Nf6 {[%clk 0:02:59.8]}
4. e3 {[%clk 0:03:01.9]} 4... Bf5 {[%clk 0:02:59.4]} 5. Nc3 {[%clk 0:03:01.9]}
5... e6 {[%clk 0:02:59.7]} 6. Nh4 {[%clk 0:03:00.9]} 6... Bg6 {[%clk 0:02:59.4]}
7. Qb3 {[%clk 0:03:00.6]} 7... Qc7 {[%clk 0:02:59]} 8. Nxg6 {[%clk 0:02:59.6]}
8... hxg6 {[%clk 0:02:59]} 9. Bd2 {[%clk 0:02:53.1]} 9... Nbd7 {[%clk
0:02:58.6]} 10. h3 {[%clk 0:02:48.8]} 10... Nb6 {[%clk 0:02:55.5]} 11. cxd5
{[%clk 0:02:42.9]} 11... exd5 {[%clk 0:02:56.4]} 12. Bd3 {[%clk 0:02:41.6]}
12... Bd6 {[%clk 0:02:38.8]} 13. O-O-O {[%clk 0:02:13.4]} 13... a5 {[%clk
0:02:31.1]} 14. e4 {[%clk 0:01:53.7]} 14... a4 {[%clk 0:02:24.7]} 15. Qc2 {[%clk
0:01:53.9]} 15... dxe4 {[%clk 0:02:24]} 16. Nxe4 {[%clk 0:01:54]} 16... Nxe4
{[%clk 0:02:21.2]} 17. Bxe4 {[%clk 0:01:52.7]} 17... a3 {[%clk 0:02:17.3]} 18.
b3 {[%clk 0:01:49.9]} 18... Bf4 {[%clk 0:02:01.4]} 19. Bxc6+ {[%clk 0:01:21.3]}
19... Kf8 {[%clk 0:01:11]} 20. Bf3 {[%clk 0:01:17.5]} 20... Bxd2+ {[%clk
0:01:04.6]} 21. Rxd2 {[%clk 0:01:14.3]} 21... Qd6 {[%clk 0:00:53.1]} 22. Kb1
{[%clk 0:01:12.3]} 22... Rc8 {[%clk 0:00:47.7]} 23. Qd3 {[%clk 0:00:55.4]} 23...
Nd5 {[%clk 0:00:42.7]} 24. Rc1 {[%clk 0:00:36.2]} 24... Rxc1+ {[%clk 0:00:40.5]}
25. Kxc1 {[%clk 0:00:37.1]} 25... Nb4 {[%clk 0:00:36.6]} 26. Qc4 {[%clk
0:00:34.7]} 26... Ke7 {[%clk 0:00:21.9]} 27. Re2+ {[%clk 0:00:24.9]} 27... Kf6
{[%clk 0:00:22]} 28. d5 {[%clk 0:00:24.1]} 28... Rh4 {[%clk 0:00:18.6]} 29.
Qxh4+ {[%clk 0:00:23.2]} 1-0

[Event "*** Titled Tuesday Blitz"]
[Site "Chess.com"]
[Date "2020.04.14"]
[Round "2"]
[White "VojtechPlat"]
[Black "LimeInTheCoconut"]
[Result "1-0"]
[WhiteElo "2734"]
[BlackElo "2336"]
[TimeControl "180+1"]
[EndTime "10:16:55 PDT"]
[Termination "VojtechPlat won by resignation"]

1. b3 {[%clk 0:03:00.9]} 1... d5 {[%clk 0:02:58.8]} 2. Bb2 {[%clk 0:03:01.8]}
2... Bg4 {[%clk 0:02:59.1]} 3. h3 {[%clk 0:03:01]} 3... Bh5 {[%clk 0:02:58.5]}
4. g4 {[%clk 0:03:01.5]} 4... Bg6 {[%clk 0:02:58.3]} 5. Bg2 {[%clk 0:03:02.1]}
5... c6 {[%clk 0:02:56.7]} 6. Nf3 {[%clk 0:03:02.5]} 6... Nd7 {[%clk 0:02:54.6]}
7. d3 {[%clk 0:03:02.8]} 7... f6 {[%clk 0:02:42.7]} 8. Nbd2 {[%clk 0:03:02.6]}
8... e6 {[%clk 0:02:37.8]} 9. e4 {[%clk 0:03:02.3]} 9... Bd6 {[%clk 0:02:33.5]}
10. Qe2 {[%clk 0:03:01.9]} 10... Ne7 {[%clk 0:01:55.2]} 11. e5 {[%clk
0:02:56.8]} 11... fxe5 {[%clk 0:01:45.2]} 12. Nxe5 {[%clk 0:02:51.1]} 12... Nxe5
{[%clk 0:01:44.6]} 13. Bxe5 {[%clk 0:02:50.6]} 13... O-O {[%clk 0:01:29.4]} 14.
Nf3 {[%clk 0:02:49]} 14... Bf7 {[%clk 0:01:20.5]} 15. Bb2 {[%clk 0:02:35.5]}
15... Ng6 {[%clk 0:01:16.6]} 16. Qd2 {[%clk 0:02:32.9]} 16... Qc7 {[%clk
0:00:47.7]} 17. h4 {[%clk 0:02:30.2]} 17... Nf4 {[%clk 0:00:41]} 18. Bf1 {[%clk
0:02:28.4]} 18... e5 {[%clk 0:00:40.4]} 19. O-O-O {[%clk 0:02:22]} 19... a5
{[%clk 0:00:37.4]} 20. d4 {[%clk 0:02:16]} 20... exd4 {[%clk 0:00:24.3]} 21.
Nxd4 {[%clk 0:02:15.5]} 21... Ne6 {[%clk 0:00:11.2]} 22. Kb1 {[%clk 0:02:12.4]}
22... Nxd4 {[%clk 0:00:07.2]} 23. Qxd4 {[%clk 0:02:11.2]} 23... Bg6 {[%clk
0:00:07.8]} 24. h5 {[%clk 0:01:58.8]} 24... Be4 {[%clk 0:00:08.1]} 25. Rg1
{[%clk 0:01:58.5]} 25... Rae8 {[%clk 0:00:07.3]} 26. Bc4 {[%clk 0:01:21.4]}
26... Kh8 {[%clk 0:00:02.8]} 27. Bd3 {[%clk 0:00:56.6]} 27... Be5 {[%clk
0:00:02.7]} 28. Qc5 {[%clk 0:00:56.4]} 28... Bd6 {[%clk 0:00:02.7]} 29. Qc3
{[%clk 0:00:53.7]} 29... Be5 {[%clk 0:00:03]} 30. Qd2 {[%clk 0:00:53.1]} 30...
Bxd3 {[%clk 0:00:03]} 31. Qxd3 {[%clk 0:00:52.9]} 31... Bxb2 {[%clk 0:00:03.6]}
32. Kxb2 {[%clk 0:00:53.1]} 32... Qe5+ {[%clk 0:00:04.3]} 33. Kb1 {[%clk
0:00:52.8]} 33... Qe4 {[%clk 0:00:04.8]} 34. Qd2 {[%clk 0:00:52]} 34... Qe2
{[%clk 0:00:04.5]} 35. Qxa5 {[%clk 0:00:51.5]} 35... Rxf2 {[%clk 0:00:04.8]} 36.
Qc5 {[%clk 0:00:51.1]} 36... Qe7 {[%clk 0:00:03.9]} 37. Qxf2 {[%clk 0:00:49.3]}
1-0